bitfinex/quotes_ETHUSD_20260208
["timestamp","ask_amount","ask_price","bid_price","bid_amount"]
[1770590534443,0.32249116,2103.8,2103.2,4.3499724]
[1770590535045,1.03500675,2104.0,2103.2,4.3499724]
[1770590535246,2.22326097,2104.0,2103.2,4.3499724]
[1770590536174,2.22326097,2104.0,2103.3,1.18860837]
[1770590536474,2.22326097,2104.0,2103.2,5.53859449]
[1770590537176,1.03738806,2103.9,2102.8,4.80790299]
[1770590537381,1.03738806,2103.9,2102.5,1.18902013]
[1770590537575,1.03738806,2103.9,2102.7,1.18891927]
[1770590538147,1.03738806,2103.7,2102.6,1.1889777]
[1770590538348,1.03738806,2103.7,2102.7,1.18894286]
[1770590539265,1.03738806,2103.7,2102.6,1.18896346]
[1770590539461,1.03738806,2103.7,2102.7,1.18893506]
[1770590539660,1.03738806,2103.7,2102.6,1.1899702]
[1770590540049,1.03738806,2103.5,2102.6,1.1899702]
[1770590540245,1.03738806,2103.3,2102.6,1.1899702]
[1770590540500,1.03738806,2103.3,2102.6,0.001]
[1770590542254,1.03738806,2103.1,2102.6,0.001]
[1770590544281,1.03738806,2102.9,2101.6,1.18953845]
[1770590544484,1.03738806,2102.9,2101.6,1.18956023]
[1770590545279,1.03738806,2102.9,2101.7,1.18951058]
[1770590545883,1.03738806,2102.9,2101.6,1.18952615]
[1770590546389,1.03738806,2102.7,2101.6,1.18956985]
[1770590548678,1.03738806,2102.5,2101.5,0.001]
[1770590549189,1.03738806,2102.5,2101.5,0.05343089]
[1770590550778,1.03738806,2102.3,2101.5,1.24300283]
[1770590551589,1.03738806,2102.3,2101.5,0.001]
[1770590552586,1.03738806,2102.3,2101.7,0.001]
[1770590552769,1.03738806,2102.1,2101.7,0.001]
[1770590555983,1.03738806,2101.9,2101.7,0.001]
[1770590558497,2.22680548,2101.9,2101.7,0.001]
[1770590559494,1.18941742,2101.9,2101.7,0.001]
[1770590559691,1.18937156,2102.0,2101.7,0.001]
[1770590560971,2.22675962,2102.0,2101.7,0.001]
[1770590564122,2.22639215,2102.7,2101.8,1.04292299]
[1770590564274,4.7561573,2102.6,2101.8,1.04292299]
[1770590564794,5.79354536,2102.6,2101.8,1.04292299]
[1770590565293,5.79354536,2102.6,2101.9,0.001]
[1770590568595,0.95838301,2102.5,2101.9,0.001]
[1770590569282,1.18904374,2102.6,2101.9,0.96207732]
[1770590569490,2.14727401,2102.8,2101.9,0.96207732]
[1770590571284,2.14727401,2102.8,2102.0,2.1504208]
[1770590571505,2.14727401,2102.8,2102.1,0.96107732]
[1770590572677,1.188891,2102.8,2102.1,0.96107732]
[1770590573710,4.75556183,2102.9,2102.1,2.15033572]
[1770590573886,4.75556183,2102.9,2102.2,0.96107732]
[1770590574614,0.95838301,2102.9,2102.2,0.96107732]
[1770590576316,1.18883446,2103.0,2102.3,0.96107732]
[1770590576685,2.14721747,2103.0,2102.3,0.96107732]
[1770590578511,2.14721747,2103.0,2102.3,2.15121277]
[1770590579014,0.002,2102.8,2102.3,2.15124092]
[1770590580924,9.11220113,2102.8,2102.3,0.001]
[1770590581108,0.95838301,2102.7,2102.3,0.001]
[1770590582500,0.002,2102.8,2102.3,0.001]
[1770590582704,1.190891,2102.8,2102.3,0.001]
[1770590585126,0.002,2102.8,2102.3,0.001]
[1770590585635,0.002,2102.8,2102.3,0.96207732]
[1770590587231,0.002,2102.8,2102.4,0.96107732]
[1770590587817,0.96038301,2102.8,2102.3,0.001]
[1770590588029,0.002,2102.8,2102.3,0.96207732]
[1770590592115,0.002,2102.8,2102.5,0.001]
[1770590592526,0.002,2102.6,2102.5,0.001]
[1770590598460,0.93490453,2102.6,2102.5,0.001]
[1770590598758,0.93490453,2102.6,2101.9,0.001]
[1770590599621,2.12392653,2102.6,2101.9,0.98057341]
[1770590600463,0.93290453,2102.5,2101.9,0.98057341]
[1770590602237,0.93290453,2102.5,2101.9,1.19040006]
[1770590604762,0.93290453,2102.5,2102.1,0.001]
[1770590612197,0.002,2102.6,2102.1,0.98057341]
[1770590613268,0.002,2102.6,2102.3,0.97957341]
[1770590615598,0.002,2102.6,2102.3,2.1687109]
[1770590616699,0.002,2102.4,2102.3,2.16873827]
[1770590616896,0.002,2102.6,2102.4,0.97957341]
[1770590617098,0.002,2102.8,2102.4,0.97957341]
[1770590617394,0.002,2102.8,2102.5,1.18906064]
[1770590618292,0.002,2102.8,2102.6,0.97957341]
[1770590618601,0.93290453,2103.3,2102.6,0.97957341]
[1770590618793,1.18859907,2103.4,2102.6,0.97957341]
[1770590618794,2.1215036,2103.4,2102.6,0.97957341]
[1770590618996,0.93290453,2103.3,2102.6,0.97957341]
[1770590619503,0.002,2103.5,2102.8,0.97957341]
[1770590619802,0.002,2103.5,2102.9,0.97957341]
[1770590620171,1.19038237,2103.7,2103.1,0.97957341]
[1770590620172,0.002,2103.7,2103.1,0.97957341]
[1770590620395,0.93290453,2103.9,2103.3,0.97957341]
[1770590621218,0.32163793,2104.0,2103.5,0.97957341]
[1770590621502,0.32163793,2104.0,2103.6,0.97957341]
[1770590623492,0.32163793,2104.0,2103.7,2.16795578]
[1770590624098,2.12087299,2104.5,2103.7,2.16795578]
[1770590625310,4.75143834,2104.7,2103.8,1.00393726]
[1770590625311,1.18787418,2104.6,2103.8,1.00393726]
[1770590625622,0.96407456,2104.5,2103.9,1.1882694]
[1770590625930,1.18787418,2104.6,2104.0,1.00393726]
[1770590626701,1.18784972,2104.7,2104.0,1.00393726]
[1770590627422,1.18784972,2104.7,2104.1,1.00393726]
[1770590627623,5.7151952,2104.8,2104.0,3.322]
[1770590627624,0.96407456,2104.8,2104.0,5.51413804]
[1770590627818,0.96407456,2105.0,2104.1,1.00393726]
[1770590628728,0.96407456,2105.0,2104.0,4.51020078]
[1770590628915,0.002,2104.3,2104.1,3.321]
[1770590629097,0.002,2104.3,2103.9,3.321]
[1770590629298,0.002,2104.3,2103.7,1.18837862]
[1770590629299,0.96607456,2104.3,2103.7,1.18837862]
[1770590630626,0.96607456,2104.3,2103.5,1.00393726]
[1770590630819,0.96607456,2104.3,2103.6,4.50939943]
[1770590631497,2.15411876,2104.3,2103.6,4.50939943]
[1770590631693,2.15411901,2104.3,2103.6,4.50939943]
[1770590631926,1.19004506,2104.3,2103.6,5.51333669]
[1770590632101,0.002,2104.3,2103.6,5.51333669]
[1770590632301,0.002,2104.3,2103.7,1.00393726]
[1770590632502,0.002,2104.3,2103.9,1.00393726]
[1770590632922,0.002,2104.3,2104.0,1.18821292]
[1770590633340,0.96407456,2104.9,2104.0,10.34635103]
[1770590633531,0.96407456,2104.9,2104.1,1.00393726]
[1770590633840,0.96407456,2105.3,2104.5,1.00393726]
[1770590634142,4.74953008,2105.5,2104.2,3.37343089]
[1770590634143,0.96407456,2105.5,2104.7,1.00393726]
[1770590634429,1.50949753,2105.6,2104.8,12.531569]
[1770590635123,2.47357209,2105.6,2104.9,1.18770487]
[1770590635326,0.96407456,2105.5,2104.8,3.321]
[1770590635510,0.96407456,2105.5,2104.8,4.50875041]
[1770590635828,1.50949753,2105.6,2104.8,5.56512823]
[1770590636518,0.12204318,2105.6,2105.0,1.00393726]
[1770590637029,0.12204318,2105.6,2105.2,1.00393726]
[1770590637337,1.18697179,2106.2,2105.2,1.00393726]
[1770590637502,1.18697179,2106.2,2105.4,1.05636815]
[1770590637702,1.18697179,2106.2,2105.5,1.00393726]
[1770590637928,2.15101057,2106.3,2105.5,1.00393726]
[1770590638228,1.18693601,2106.3,2105.5,1.00393726]
[1770590638727,1.18693601,2106.3,2105.7,0.05243089]
[1770590638935,0.96407456,2106.7,2105.7,2.24359445]
[1770590639122,0.96407456,2106.7,2105.7,1.23965719]
[1770590639829,0.96407456,2106.7,2105.8,1.00393726]
[1770590640042,0.96407456,2106.7,2105.7,0.05243089]
[1770590640329,0.96407456,2106.7,2105.4,5.56376119]
[1770590640536,0.96407456,2106.7,2105.4,3.32]
[1770590641029,1.18674641,2106.6,2105.4,3.32]
[1770590641205,0.96407456,2106.5,2105.4,3.32]
[1770590642430,0.96607456,2106.5,2105.4,3.32]
[1770590642808,0.96607456,2106.5,2105.4,4.50741847]
[1770590643136,2.15093365,2106.4,2105.4,5.51135573]
[1770590643904,2.15093365,2106.4,2105.5,1.00393726]
[1770590644228,0.96407456,2106.3,2105.4,3.32]
[1770590644434,0.96407456,2106.3,2105.4,4.50742101]
[1770590644804,0.96407456,2106.3,2105.4,5.51135827]
[1770590645112,0.002,2106.5,2105.5,1.00393726]
[1770590645311,0.96407456,2106.4,2105.5,1.00393726]
[1770590647416,1.18691544,2106.3,2105.5,1.00393726]
[1770590647930,2.15099,2106.3,2105.5,1.00393726]
[1770590648735,1.18691544,2106.3,2105.6,1.00393726]
[1770590648911,2.15099,2106.3,2105.4,5.51132141]
[1770590649441,0.96607456,2106.5,2105.5,1.00393726]
[1770590650129,0.96607456,2106.5,2105.5,2.19127695]
[1770590650440,0.96607456,2106.5,2105.5,1.00393726]
[1770590650621,0.96607456,2106.5,2105.6,1.05636815]
[1770590651514,1.18685909,2106.4,2105.7,1.18725364]
[1770590652916,2.15093365,2106.4,2105.7,1.18725364]
[1770590653120,1.18685909,2106.4,2105.7,2.1911909]
[1770590653425,2.15093365,2106.4,2105.7,1.18725364]
[1770590654040,0.96407456,2106.3,2105.4,3.32]
[1770590654213,0.96407456,2106.3,2105.0,2.19155979]
[1770590654418,0.96407456,2106.3,2104.9,1.24010785]
[1770590654630,0.96407456,2106.3,2104.9,2.24404511]
[1770590654837,0.96407456,2106.3,2105.0,1.18764378]
[1770590655057,0.96407456,2106.3,2105.7,0.001]
[1770590655350,0.96407456,2106.3,2104.9,2.2440319]
[1770590655546,0.96407456,2106.3,2105.0,2.12085789]
[1770590655721,0.96407456,2106.3,2105.5,0.001]
[1770590655920,0.94847744,2106.1,2105.5,0.001]
[1770590658161,1.18708452,2106.0,2105.5,0.001]
[1770590658325,2.18566426,2106.0,2105.5,0.001]
[1770590659554,0.99857974,2105.9,2105.5,0.001]
[1770590660254,1.18719726,2105.8,2105.5,0.001]
[1770590662260,2.185777,2105.8,2105.5,0.001]
[1770590663362,0.99857974,2105.7,2105.5,0.001]
[1770590664558,2.18587632,2105.7,2105.5,0.001]
[1770590666067,0.99857974,2105.6,2105.5,0.001]
[1770590666260,0.99857974,2105.6,2104.9,2.17310363]
[1770590666458,0.99857974,2105.6,2104.9,1.18766049]
[1770590666654,1.18736642,2105.5,2104.8,4.75098179]
[1770590667242,1.18736642,2105.5,2104.8,1.1877613]
[1770590667443,0.99857974,2105.5,2104.8,1.1877613]
[1770590667972,0.99857974,2105.5,2104.8,2.17320444]
[1770590668271,0.99857974,2105.5,2105.1,0.001]
[1770590668775,1.18742281,2105.4,2105.1,0.001]
[1770590670352,2.18600255,2105.4,2105.1,0.001]
[1770590671055,0.99857974,2105.3,2105.1,0.001]
[1770590673264,1.18753562,2105.2,2105.1,0.001]
[1770590673471,2.18611536,2105.2,2105.1,0.001]
[1770590673801,0.99857974,2105.1,2104.3,0.98544314]
[1770590673974,0.99857974,2105.1,2104.1,0.98644314]
[1770590674486,0.99857974,2105.1,2104.1,0.001]
[1770590675099,0.99857974,2105.0,2104.1,0.001]
[1770590676104,0.99857974,2104.8,2104.1,0.001]
[1770590678099,0.99857974,2104.6,2104.1,0.001]
[1770590678294,0.99857974,2104.6,2103.5,0.98544314]
[1770590679318,0.99857974,2104.6,2103.6,0.98544314]
[1770590680899,0.99857974,2104.4,2103.6,0.98544314]
[1770590681685,0.99857974,2104.4,2104.3,0.001]
[1770590682009,0.99857974,2104.4,2103.6,0.98544314]
[1770590682209,0.99857974,2104.4,2104.0,0.001]
[1770590682903,0.99857974,2104.7,2104.0,0.001]
[1770590685122,0.99775174,2104.5,2104.0,0.001]
[1770590686200,0.99775174,2104.5,2103.7,0.98544314]
[1770590686607,1.18787418,2104.6,2103.8,0.93018139]
[1770590687106,0.99775174,2104.7,2103.8,2.11850252]
[1770590687419,0.002,2104.9,2103.9,0.93018139]
[1770590687588,0.99975174,2104.9,2103.9,0.93018139]
[1770590689082,1.1877613,2104.8,2104.1,0.93018139]
[1770590691212,4.75288935,2104.9,2104.1,0.93018139]
[1770590691213,0.99975174,2104.9,2104.1,0.93018139]
[1770590691392,0.002,2104.9,2104.2,0.93018139]
[1770590693419,0.002,2104.9,2104.3,0.93018139]
[1770590695418,0.002,2104.7,2104.3,0.93018139]
[1770590695605,0.002,2104.7,2104.3,2.11821916]
[1770590695790,0.002,2104.7,2104.3,0.93018139]
[1770590696198,0.002,2104.7,2104.2,0.001]
[1770590696199,0.99975174,2104.7,2104.2,0.001]
[1770590696490,0.99975174,2104.7,2104.0,0.001]
[1770590696686,0.99975174,2104.7,2103.2,0.98361228]
[1770590696914,0.99775174,2104.6,2103.2,0.001]
[1770590697115,0.99775174,2104.2,2103.2,0.001]
[1770590697421,0.99775174,2104.2,2102.7,0.001]
[1770590697422,0.99775174,2103.7,2102.7,0.001]
[1770590697719,1.10015174,2103.2,2102.5,0.001]
[1770590697920,0.1024,2102.9,2102.1,0.001]
[1770590698215,0.1024,2102.9,2101.6,0.001]
[1770590698216,0.3359703,2102.7,2101.6,0.001]
[1770590698414,0.3359703,2102.7,2101.1,0.001]
[1770590698415,1.10015174,2102.2,2101.1,0.001]
[1770590698615,0.99775174,2101.6,2100.6,0.001]
[1770590699017,0.99775174,2101.5,2100.6,0.001]
[1770590699218,0.99775174,2101.3,2100.6,0.001]
[1770590699425,2.18760467,2101.1,2100.6,0.001]
[1770590700319,1.18985293,2101.1,2100.3,0.001]
[1770590700519,5.50751997,2101.3,2100.3,0.001]
[1770590700912,0.32242809,2101.4,2100.3,0.93118139]
[1770590701110,0.32242809,2101.4,2100.4,0.98261228]
[1770590701329,0.32242809,2101.4,2100.7,0.98261228]
[1770590701537,0.32242809,2101.4,2100.9,0.93018139]
[1770590702209,1e-08,2101.4,2100.9,0.93018139]
[1770590703523,1e-08,2101.4,2101.0,1.18990956]
[1770590707208,1e-08,2101.4,2101.1,0.93018139]
[1770590707414,0.32323553,2101.9,2101.1,0.93018139]
[1770590707613,0.32323553,2101.9,2101.3,0.05243089]
[1770590707825,0.32565092,2102.3,2101.6,0.98261228]
[1770590708231,0.03401692,2102.9,2101.6,0.98261228]
[1770590708543,0.32294779,2102.8,2102.0,0.98261228]
[1770590709036,1.18861173,2103.3,2102.0,0.98261228]
[1770590709238,1.18861173,2103.3,2102.0,0.93018139]
[1770590709611,1.22262824,2103.3,2102.1,0.05243089]
[1770590709812,1.18861173,2103.3,2102.2,1.18923033]
[1770590710830,2.22035877,2103.4,2102.3,0.93018139]
[1770590711543,0.03401653,2103.4,2102.3,0.93018139]
[1770590712044,0.03401653,2103.4,2102.5,1.18906064]
[1770590712437,0.03401653,2103.4,2102.5,2.11924203]
[1770590713154,0.03401653,2103.4,2102.6,0.93018139]
[1770590714047,0.03401653,2103.4,2102.7,1.18894754]
[1770590715758,0.03401653,2103.4,2102.7,2.16569829]
[1770590715940,0.03401653,2103.4,2102.8,0.9661151]
[1770590716140,1e-08,2103.4,2102.9,1.18883446]
[1770590719059,1e-08,2103.4,2102.9,2.15494956]
[1770590719371,1e-08,2103.4,2103.0,0.9661151]
[1770590719860,0.93788506,2104.1,2103.0,1.01854599]
[1770590720239,1.51039514,2104.3,2103.2,0.9661151]
[1770590720434,0.32230839,2104.3,2103.4,0.9661151]
[1770590722046,0.32230839,2104.3,2103.6,1.01854599]
[1770590722359,0.32430839,2104.3,2103.7,1.18838237]
[1770590723735,0.32430839,2104.3,2103.7,2.15449747]
[1770590723946,0.32430839,2104.3,2103.8,0.9661151]
[1770590724357,0.32430839,2104.3,2103.9,1.1882694]
[1770590725055,1e-08,2104.3,2103.9,1.1882694]
[1770590725634,0.002,2104.7,2103.9,1.1882694]
[1770590725635,0.002,2104.7,2104.0,0.9661151]
[1770590726561,0.002,2104.7,2104.2,1.01854599]
[1770590728646,0.002,2104.7,2104.3,1.18804352]
[1770590730152,0.002,2104.7,2104.0,8.07417411]
[1770590730153,0.002,2104.7,2104.0,3.322]
[1770590730352,0.002,2104.7,2104.2,1.18809359]
[1770590730860,0.002,2104.7,2104.1,4.7526093]
[1770590734047,0.002,2104.5,2104.1,4.7526093]
[1770590739284,0.002,2104.5,2104.1,5.7187244]
[1770590739675,0.002,2104.5,2104.1,1.18815645]
[1770590740460,0.002,2104.5,2104.0,4.75277095]
[1770590741481,0.002,2104.5,2104.0,4.80520184]
[1770590743960,0.002,2104.5,2103.7,0.05243089]
[1770590743961,0.93988506,2104.5,2103.7,1.01854599]
[1770590744290,0.93988506,2104.5,2103.9,1.18822517]
[1770590744488,0.93988506,2104.5,2103.8,1.18828664]
[1770590744689,0.93988506,2104.5,2103.9,1.18825318]
[1770590745563,0.002,2104.5,2103.9,0.92924856]
[1770590747399,0.002,2104.5,2104.1,0.001]
[1770590747694,0.002,2104.3,2104.1,0.001]
[1770590760786,0.96731543,2104.3,2104.1,0.001]
[1770590760988,0.96731543,2104.3,2103.9,0.001]
[1770590761194,0.96731543,2104.3,2103.6,0.001]
[1770590761506,0.96531543,2104.0,2103.6,0.001]
[1770590761810,1.1882694,2103.9,2103.6,0.001]
[1770590766610,2.15358483,2103.9,2103.6,0.001]
[1770590766795,0.96531543,2103.8,2103.6,0.001]
[1770590768199,5.71833351,2104.0,2103.6,0.001]
[1770590768399,0.96531543,2103.9,2103.6,0.001]
[1770590769308,1.18821292,2104.0,2103.6,0.001]
[1770590769617,1.19018238,2104.1,2103.6,0.93024856]
[1770590770115,1.19018238,2104.1,2103.6,0.001]
[1770590770699,2.15549781,2104.1,2103.6,0.001]
[1770590771021,0.96531543,2104.0,2103.6,0.001]
[1770590771207,1.19018238,2104.1,2103.6,0.001]
[1770590772494,2.15549781,2104.1,2103.6,0.001]
[1770590773595,2.15549781,2104.1,2103.8,0.001]
[1770590776921,0.002,2104.1,2103.8,0.001]
[1770590779427,1.19015645,2104.1,2103.8,0.001]
[1770590781238,0.002,2104.1,2103.8,0.001]
[1770590783419,0.91260834,2104.1,2103.8,0.001]
[1770590783620,1.18821292,2104.0,2103.8,0.001]
[1770590785544,0.002,2104.1,2103.8,0.001]
[1770590786721,0.91260834,2104.1,2103.8,0.001]
[1770590788135,0.91260834,2104.1,2104.0,0.001]
[1770590788447,0.002,2104.1,2104.0,0.001]
[1770590789219,0.002,2104.1,2103.8,0.001]
[1770590790245,1.19015645,2104.1,2103.8,0.001]
[1770590792743,0.002,2104.1,2103.8,0.001]
[1770590797722,0.91260834,2104.1,2103.8,0.001]
[1770590799248,1.18821292,2104.0,2103.8,0.001]
[1770590800627,0.002,2103.9,2103.8,0.001]
[1770590809154,0.002,2103.9,2103.6,0.001]
[1770590809344,0.93050375,2103.9,2103.6,0.002]
[1770590810647,0.002,2103.9,2103.6,0.002]
[1770590813269,0.002,2103.9,2103.8,0.001]
[1770590815869,0.93050375,2103.9,2103.8,0.001]
[1770590819152,0.002,2103.9,2103.8,0.001]
[1770590823271,0.002,2104.3,2103.8,0.94115346]
[1770590823479,8.14599464,2104.9,2103.9,0.94015346]
[1770590823777,1.18982567,2104.7,2103.9,0.94015346]
[1770590823987,0.002,2104.7,2103.9,0.94015346]
[1770590825370,0.002,2104.7,2104.1,0.94015346]
[1770590827483,0.002,2104.7,2104.3,0.94015346]
[1770590830283,0.002,2104.7,2104.3,1.18800319]
[1770590830491,0.002,2104.7,2104.3,2.12815665]
[1770590831979,0.002,2104.7,2104.3,1.18800319]
[1770590832488,5.93687778,2104.6,2104.3,1.18800319]
[1770590833867,5.93687778,2104.6,2104.4,0.94015346]
[1770590834067,0.002,2104.8,2104.5,0.94015346]
[1770590834268,0.002,2104.8,2104.7,0.94015346]
[1770590834570,0.002,2105.0,2104.6,9.33186882]
[1770590834771,0.002,2105.0,2104.8,0.94015346]
[1770590835893,5.93887778,2104.9,2104.8,0.94015346]
[1770590836085,1e-08,2105.0,2104.8,0.94015346]
[1770590836281,0.3222429,2105.3,2104.8,0.94015346]
[1770590837192,0.3222429,2105.3,2104.9,0.99575148]
[1770590837970,0.3222429,2105.3,2105.1,0.99575148]
[1770590838172,0.93885314,2105.9,2105.1,0.99575148]
[1770590838371,2.12599907,2105.9,2105.1,0.99575148]
[1770590838680,2.12600243,2105.9,2105.1,0.99575148]
[1770590839196,0.002,2105.9,2105.3,0.99575148]
[1770590839996,0.94085314,2105.9,2105.1,2.18330566]
[1770590840800,0.94085314,2105.9,2105.2,0.99575148]
[1770590841183,1.18719726,2105.8,2105.2,0.99575148]
[1770590841494,1.18719726,2105.8,2105.3,0.99575148]
[1770590841673,2.1260504,2105.8,2105.2,1.18752926]
[1770590842270,2.1260504,2105.8,2105.2,0.99575148]
[1770590842497,0.93885314,2105.8,2105.2,2.1832804]
[1770590842685,1.18917822,2105.9,2105.2,2.1832804]
[1770590842890,2.12803136,2105.9,2105.2,2.1832804]
[1770590843092,0.94085314,2105.9,2105.2,2.1832804]
[1770590843294,2.12799628,2105.9,2105.2,2.1832804]
[1770590844874,2.12799628,2105.9,2105.2,1.18752892]
[1770590845075,1.18914314,2105.9,2105.3,0.99575148]
[1770590845496,0.002,2105.9,2105.3,1.18745363]
[1770590845800,0.002,2105.9,2105.4,0.99575148]
[1770590847804,0.002,2105.9,2105.6,0.99575148]
[1770590848011,4.74728344,2106.5,2105.6,0.99575148]
[1770590848012,1.18683952,2106.5,2105.6,0.99575148]
[1770590850098,0.34105847,2106.6,2105.8,0.99575148]
[1770590850324,0.34105847,2106.6,2105.9,8.14399464]
[1770590850522,0.34105847,2106.6,2106.0,0.99575148]
[1770590851701,0.34105847,2106.6,2106.2,0.99575148]
[1770590852100,0.34105847,2106.6,2106.3,0.99575148]
[1770590855004,0.34105847,2106.6,2105.9,0.99575148]
[1770590855205,1.52783781,2106.6,2105.9,2.18286311]
[1770590856429,1.52783781,2106.6,2105.9,0.99575148]
[1770590857103,1.52783781,2106.6,2105.8,4.50515026]
[1770590857504,0.93885314,2106.4,2105.4,0.001]
[1770590857716,0.93885314,2106.4,2105.4,1.18839025]
[1770590857924,0.93885314,2106.2,2105.4,0.001]
[1770590859309,0.93885314,2106.0,2105.4,0.001]
[1770590862212,1.18714088,2105.9,2105.4,0.001]
[1770590862410,0.93885314,2105.8,2105.4,0.001]
[1770590864310,0.93885314,2105.6,2105.4,0.001]
[1770590865436,1.18723234,2105.8,2105.4,0.001]
[1770590865838,1.18911265,2106.0,2105.4,0.001]
[1770590866134,1.18911265,2106.0,2105.4,0.91571109]
[1770590866350,0.002,2106.0,2105.4,2.10311454]
[1770590866527,0.002,2106.0,2105.5,0.91471109]
[1770590867355,0.002,2106.2,2105.8,0.91471109]
[1770590868334,0.002,2106.2,2106.0,0.91471109]
[1770590870311,0.002,2106.2,2106.0,2.10177967]
[1770590871616,0.002,2106.2,2106.1,0.91471109]
[1770590874044,0.002,2106.2,2106.1,2.10173924]
[1770590878022,0.33204734,2106.5,2106.2,0.91471109]
[1770590881819,2.44168978,2106.5,2106.0,0.001]
[1770590882041,0.92283064,2106.4,2105.5,0.05243089]
[1770590882352,0.92283064,2106.3,2105.4,0.001]
[1770590882555,0.92283064,2106.3,2105.4,0.00199999]
[1770590883234,0.92283064,2106.1,2105.4,0.00199999]
[1770590885036,0.92283064,2105.9,2105.4,0.00199999]
[1770590886251,0.92283064,2105.9,2105.4,0.001]
[1770590886453,0.92283064,2105.9,2105.4,0.00199999]
[1770590886654,0.92283064,2105.9,2105.5,0.00099999]
[1770590887256,0.92283064,2106.1,2105.5,0.00099999]
[1770590887648,1.18697179,2106.2,2105.5,0.00099999]
[1770590887958,1.18697179,2106.2,2105.5,0.91571108]
[1770590889036,1.18697179,2106.2,2105.7,0.91571109]
[1770590889352,0.002,2106.0,2105.7,2.10295447]
[1770590889552,0.002,2106.0,2105.8,0.00099999]
[1770590893260,0.002,2106.0,2105.7,0.001]
[1770590893763,0.92483064,2106.0,2105.7,0.001]
[1770590894957,1.18714088,2105.9,2105.7,0.001]
[1770590895142,5.67317996,2106.0,2105.7,0.001]
[1770590895143,2.11195464,2106.0,2105.7,0.001]
[1770590897142,0.9093761,2105.9,2105.7,0.001]
[1770590897337,0.002,2106.0,2105.7,0.001]
[1770590898461,0.002,2106.0,2105.8,0.00099999]
[1770590899257,0.002,2106.0,2105.9,0.00099999]
[1770590899456,0.002,2106.0,2105.7,0.97530595]
[1770590899457,0.00100001,2106.0,2105.7,0.97530595]
[1770590901948,0.00100001,2106.0,2105.8,1.18719726]
[1770590902466,0.002,2106.2,2105.9,0.97430595]
[1770590902984,0.002,2106.0,2105.9,0.97430595]
[1770590903164,0.002,2106.2,2105.9,0.97430595]
[1770590903979,0.002,2106.2,2106.0,1.18708452]
[1770590905689,0.002,2106.2,2106.0,2.16139047]
[1770590906075,0.002,2106.2,2106.0,1.18708452]
[1770590907489,0.002,2106.2,2105.8,1.18716598]
[1770590908163,0.9113761,2106.2,2105.7,0.001]
[1770590908363,0.9113761,2106.2,2105.4,0.001]
[1770590908364,0.9093761,2106.0,2105.4,0.001]
[1770590909381,1.18714088,2105.9,2105.4,0.001]
[1770590909586,0.9093761,2105.8,2105.4,0.001]
[1770590911382,1.18725364,2105.7,2105.4,0.001]
[1770590915400,1.18725364,2105.7,2105.6,0.001]
[1770590916318,2.09662974,2105.7,2105.6,0.001]
[1770590916918,0.002,2105.8,2105.6,0.001]
[1770590917102,0.9093761,2105.7,2105.6,0.001]
[1770590917604,0.9093761,2105.7,2105.6,0.003]
[1770590917605,1.18725364,2105.7,2105.6,0.003]
[1770590917790,0.002,2105.8,2105.6,0.003]
[1770590918106,1.18919844,2105.8,2105.6,0.003]
[1770590918517,1.18920092,2105.8,2105.6,0.003]
[1770590918716,2.09857702,2105.8,2105.6,0.001]
[1770590919515,0.9113761,2105.8,2105.6,0.001]
[1770590922201,1.18725364,2105.7,2105.6,0.001]
[1770590922591,2.09662974,2105.7,2105.6,0.001]
[1770590923220,2.09662974,2105.7,2105.4,0.001]
[1770590923393,2.09662974,2105.7,2105.5,0.002]
[1770590927455,2.09662974,2105.7,2105.4,0.001]
[1770590927755,2.09662974,2105.7,2105.5,0.002]
[1770590929246,0.002,2105.6,2105.5,0.001]
[1770590931145,0.9179724,2105.6,2105.2,5.35460593]
[1770590931749,2.10333882,2105.5,2105.2,5.35460593]
[1770590932129,0.9159724,2105.4,2105.2,5.35460593]
[1770590932453,0.9159724,2105.4,2105.1,0.001]
[1770590933021,0.9159724,2105.4,2104.6,0.001]
[1770590937168,0.9159724,2105.2,2104.6,0.001]
[1770590937663,0.9159724,2105.2,2104.6,0.91879033]
[1770590937884,0.9159724,2105.2,2104.6,0.001]
[1770590939250,1.18759203,2105.1,2104.6,0.001]
[1770590939449,0.9159724,2105.0,2104.6,0.001]
[1770590941278,1.18770487,2104.9,2104.8,0.001]
[1770590941666,2.10367727,2104.9,2104.8,0.001]
[1770590942169,2.10367727,2104.9,2104.6,0.001]
[1770590943176,2.10367727,2104.9,2104.5,0.001]
[1770590944085,0.9159724,2104.8,2104.3,0.001]
[1770590946289,0.9159724,2104.6,2104.3,0.001]
[1770590947083,0.9159724,2104.6,2103.8,3.319]
[1770590947591,9.05458837,2104.6,2103.8,3.319]
[1770590947795,0.9159724,2104.5,2103.8,3.319]
[1770590948769,0.9159724,2104.3,2103.8,3.319]
[1770590950596,0.9159724,2104.3,2103.8,0.001]
[1770590954198,1.18809999,2104.2,2103.8,0.001]
[1770590954392,1.18809999,2104.2,2104.0,0.001]
[1770590955194,8.07027096,2104.8,2104.0,0.001]
[1770590955195,1.18770487,2104.9,2104.1,9.10170664]
[1770590955495,4.75046548,2105.1,2104.2,0.96309067]
[1770590955701,0.004,2104.9,2104.2,0.96309067]
[1770590957303,0.004,2104.9,2104.3,0.972658]
[1770590957603,4.75046548,2105.1,2104.3,0.972658]
[1770590957774,0.004,2105.0,2104.3,0.972658]
[1770590959394,0.004,2105.0,2104.4,0.972658]
[1770590964588,5.74312021,2105.1,2104.4,0.972658]
[1770590964778,0.004,2105.0,2104.4,0.972658]
[1770590965378,5.74312021,2105.1,2104.4,0.972658]
[1770590965597,0.004,2105.0,2104.4,0.972658]
[1770590966699,0.004,2105.0,2104.6,0.001]
[1770590966910,0.004,2105.0,2104.6,0.973658]
[1770590967073,0.002,2104.8,2104.6,0.973658]
[1770590970910,0.002,2104.8,2104.6,0.001]
[1770590971678,0.006,2104.8,2104.6,0.001]
[1770590971978,0.99465473,2104.8,2104.1,0.972658]
[1770590972194,0.99265473,2104.6,2104.0,0.001]
[1770590973010,0.99265473,2104.4,2104.0,0.001]